{"text_format":"3","workbook":"xlsx","n_sheets":2,"sheets":["Controlador de Perda de Peso","cálculos"],"not_rendered":{"charts":1,"defined_names":10},"read":"whole","date_system":"1900"}

{"sheet":"Controlador de Perda de Peso","index":0,"n_rows":19,"n_cols":9,"rows_kept":19,"merged":[[0,3,0,7],[0,8,0,9],[1,3,2,9]]}
[null,"OBJETIVO DE PESO","VISTA DO GRÁFICO","Nome",{"$nulls":4},"PERDA DE PESO"]
[{"$nulls":3},"CONTROLADOR"]
[null,{"v":172,"d":"172.0"},"SEMANAL"]
[null,"MOSTRAR OBJETIVO DE PESO","Sim"]
[null,"Gráfico do Controlador de Peso que regista o peso atual nesta célula. Selecione \"Sim\" na célula C4 para mostrar a linha do Objetivo de Peso sobre o gráfico de área."]
[]
[null,"DATA","PESO"]
[null,{"$f":"TODAY()-77","v":"2022-01-20"},{"v":176,"d":"176.0"}]
[null,{"$f":"TODAY()-70","v":"2022-01-27"},{"v":176,"d":"176.0"}]
[null,{"$f":"TODAY()-63","v":"2022-02-03"},177.6]
[null,{"$f":"TODAY()-56","v":"2022-02-10"},176.5]
[null,{"$f":"TODAY()-49","v":"2022-02-17"},176.1]
[null,{"$f":"TODAY()-42","v":"2022-02-24"},{"v":174,"d":"174.0"}]
[null,{"$f":"TODAY()-35","v":"2022-03-03"},173.5]
[null,{"$f":"TODAY()-28","v":"2022-03-10"},{"v":173,"d":"173.0"}]
[null,{"$f":"TODAY()-21","v":"2022-03-17"},{"v":172,"d":"172.0"}]
[null,{"$f":"TODAY()-14","v":"2022-03-24"},{"v":172,"d":"172.0"}]
[null,{"$f":"TODAY()-7","v":"2022-03-31"},{"v":173,"d":"173.0"}]
[null,{"$f":"TODAY()","v":"2022-04-07"},{"v":172,"d":"172.0"}]

{"sheet":"cálculos","index":1,"n_rows":107,"n_cols":17,"rows_kept":107,"hidden":true}
["*** Folha a permanecer oculta ***"]
[]
[{"$f":"COUNTIF(A5:A107,FALSE)","v":12},"Períodos","Valores",{"$nulls":3},{"$f":"COUNTIF(H5:H28,\">\"&0)","v":4},"Períodos",null,"Valores"]
[null,"Semana",null,null,{"$f":"IFERROR(IF(MostrarObjetivoDePeso=\"Sim\", TRUE, FALSE),FALSE)","v":true},null,null,"Mês","Fim do Mês"]
[{"$f":"FALSE","v":false},{"$f":"IFERROR(IF(LEN('Controlador de Perda de Peso'!$B8)=0,TODAY(),'Controlador de Perda de Peso'!$B8),TODAY())","v":"2022-01-20"},{"$f":"IFERROR(IF(LEN('Controlador de Perda de Peso'!$C8)=0,ObjetivoDePeso,'Controlador de Perda de Peso'!$C8),0)","v":176},{"$f":"IFERROR(IF(MIN(PeríodosDoGráfico)=0,TODAY(),MIN(PeríodosDoGráfico)),TODAY())","v":"2022-01-20"},{"$f":"IFERROR(IF($A$5,0,IF($E$4,ObjetivoDePeso,NA())),0)","v":172},null,null,{"$f":"IFERROR(IF($A$5,TODAY(),DATE(YEAR($B5),MONTH($B5),1)),\"\")","v":"2022-01-01"},{"$f":"IFERROR(IF($A$5,TODAY(),EOMONTH($H5,0)),\"\")","v":"2022-01-31"},{"$f":"IFERROR(IF($A$5,0,AVERAGEIFS(Peso[PESO],Peso[DATA],\">=\"&$H5,Peso[DATA],\"<=\"&$I5)),NA())","v":176}]
[{"$f":"IF((LEN('Controlador de Perda de Peso'!$C9)=0),TRUE)","v":false},{"$f":"IFERROR(IF(A6,0,IF(LEN('Controlador de Perda de Peso'!$B9)=0,0,'Controlador de Perda de Peso'!$B9)),\"\")","v":"2022-01-27"},{"$f":"IFERROR(IF(A6,0,IF(LEN('Controlador de Perda de Peso'!$C9)=0,0,'Controlador de Perda de Peso'!$C9)),\"\")","v":176},{"$f":"IFERROR(IF(MAX(PeríodosDoGráfico)=0,TODAY(),MAX(PeríodosDoGráfico)),TODAY())","v":"2022-04-07"},{"$f":"IFERROR(IF($A$5,0,IF($E$4,ObjetivoDePeso,NA())),0)","v":172},null,null,{"$f":"IF($I5+1>MAX($B:$B),NA(),$I5+1)","v":"2022-02-01"},{"$f":"EOMONTH($H6,0)","v":"2022-02-28"},{"$f":"IFERROR(AVERAGEIFS(Peso[PESO],Peso[DATA],\">=\"&$H6,Peso[DATA],\"<=\"&$I6),NA())","v":176.05}]
[{"$f":"IF((LEN('Controlador de Perda de Peso'!$C10)=0),TRUE)","v":false},{"$f":"IFERROR(IF(A7,0,IF(LEN('Controlador de Perda de Peso'!$B10)=0,0,'Controlador de Perda de Peso'!$B10)),\"\")","v":"2022-02-03"},{"$f":"IFERROR(IF(A7,0,IF(LEN('Controlador de Perda de Peso'!$C10)=0,0,'Controlador de Perda de Peso'!$C10)),\"\")","v":177.6},{"$nulls":4},"2022-03-01","2022-03-31",{"$f":"IFERROR(AVERAGEIFS(Peso[PESO],Peso[DATA],\">=\"&$H7,Peso[DATA],\"<=\"&$I7),NA())","v":172.7}]
[{"$f":"IF((LEN('Controlador de Perda de Peso'!$C11)=0),TRUE)","v":false},{"$f":"IFERROR(IF(A8,0,IF(LEN('Controlador de Perda de Peso'!$B11)=0,0,'Controlador de Perda de Peso'!$B11)),\"\")","v":"2022-02-10"},{"$f":"IFERROR(IF(A8,0,IF(LEN('Controlador de Perda de Peso'!$C11)=0,0,'Controlador de Perda de Peso'!$C11)),\"\")","v":176.5},{"$nulls":4},"2022-04-01","2022-04-30",{"$f":"IFERROR(AVERAGEIFS(Peso[PESO],Peso[DATA],\">=\"&$H8,Peso[DATA],\"<=\"&$I8),NA())","v":172}]
[{"$f":"IF((LEN('Controlador de Perda de Peso'!$C12)=0),TRUE)","v":false},{"$f":"IFERROR(IF(A9,0,IF(LEN('Controlador de Perda de Peso'!$B12)=0,0,'Controlador de Perda de Peso'!$B12)),\"\")","v":"2022-02-17"},{"$f":"IFERROR(IF(A9,0,IF(LEN('Controlador de Perda de Peso'!$C12)=0,0,'Controlador de Perda de Peso'!$C12)),\"\")","v":176.1},{"$nulls":4},{"$error":"#N/A"},{"$error":"#N/A"},{"$f":"IFERROR(AVERAGEIFS(Peso[PESO],Peso[DATA],\">=\"&$H9,Peso[DATA],\"<=\"&$I9),NA())","v":{"$error":"#N/A"}}]
[{"$f":"IF((LEN('Controlador de Perda de Peso'!$C13)=0),TRUE)","v":false},{"$f":"IFERROR(IF(A10,0,IF(LEN('Controlador de Perda de Peso'!$B13)=0,0,'Controlador de Perda de Peso'!$B13)),\"\")","v":"2022-02-24"},{"$f":"IFERROR(IF(A10,0,IF(LEN('Controlador de Perda de Peso'!$C13)=0,0,'Controlador de Perda de Peso'!$C13)),\"\")","v":174},{"$nulls":4},{"$error":"#N/A"},{"$error":"#N/A"},{"$f":"IFERROR(AVERAGEIFS(Peso[PESO],Peso[DATA],\">=\"&$H10,Peso[DATA],\"<=\"&$I10),NA())","v":{"$error":"#N/A"}}]
[{"$f":"IF((LEN('Controlador de Perda de Peso'!$C14)=0),TRUE)","v":false},{"$f":"IFERROR(IF(A11,0,IF(LEN('Controlador de Perda de Peso'!$B14)=0,0,'Controlador de Perda de Peso'!$B14)),\"\")","v":"2022-03-03"},{"$f":"IFERROR(IF(A11,0,IF(LEN('Controlador de Perda de Peso'!$C14)=0,0,'Controlador de Perda de Peso'!$C14)),\"\")","v":173.5},{"$nulls":4},{"$error":"#N/A"},{"$error":"#N/A"},{"$f":"IFERROR(AVERAGEIFS(Peso[PESO],Peso[DATA],\">=\"&$H11,Peso[DATA],\"<=\"&$I11),NA())","v":{"$error":"#N/A"}},{"$nulls":6},{"$f":"MAX($B:$B)","v":"2022-04-07"}]
[{"$f":"IF((LEN('Controlador de Perda de Peso'!$C15)=0),TRUE)","v":false},{"$f":"IFERROR(IF(A12,0,IF(LEN('Controlador de Perda de Peso'!$B15)=0,0,'Controlador de Perda de Peso'!$B15)),\"\")","v":"2022-03-10"},{"$f":"IFERROR(IF(A12,0,IF(LEN('Controlador de Perda de Peso'!$C15)=0,0,'Controlador de Perda de Peso'!$C15)),\"\")","v":173},{"$nulls":4},{"$error":"#N/A"},{"$error":"#N/A"},{"$f":"IFERROR(AVERAGEIFS(Peso[PESO],Peso[DATA],\">=\"&$H12,Peso[DATA],\"<=\"&$I12),NA())","v":{"$error":"#N/A"}}]
[{"$f":"IF((LEN('Controlador de Perda de Peso'!$C16)=0),TRUE)","v":false},{"$f":"IFERROR(IF(A13,0,IF(LEN('Controlador de Perda de Peso'!$B16)=0,0,'Controlador de Perda de Peso'!$B16)),\"\")","v":"2022-03-17"},{"$f":"IFERROR(IF(A13,0,IF(LEN('Controlador de Perda de Peso'!$C16)=0,0,'Controlador de Perda de Peso'!$C16)),\"\")","v":172},{"$nulls":4},{"$error":"#N/A"},{"$error":"#N/A"},{"$f":"IFERROR(AVERAGEIFS(Peso[PESO],Peso[DATA],\">=\"&$H13,Peso[DATA],\"<=\"&$I13),NA())","v":{"$error":"#N/A"}}]
[{"$f":"IF((LEN('Controlador de Perda de Peso'!$C17)=0),TRUE)","v":false},{"$f":"IFERROR(IF(A14,0,IF(LEN('Controlador de Perda de Peso'!$B17)=0,0,'Controlador de Perda de Peso'!$B17)),\"\")","v":"2022-03-24"},{"$f":"IFERROR(IF(A14,0,IF(LEN('Controlador de Perda de Peso'!$C17)=0,0,'Controlador de Perda de Peso'!$C17)),\"\")","v":172},{"$nulls":4},{"$error":"#N/A"},{"$error":"#N/A"},{"$f":"IFERROR(AVERAGEIFS(Peso[PESO],Peso[DATA],\">=\"&$H14,Peso[DATA],\"<=\"&$I14),NA())","v":{"$error":"#N/A"}}]
[{"$f":"IF((LEN('Controlador de Perda de Peso'!$C18)=0),TRUE)","v":false},{"$f":"IFERROR(IF(A15,0,IF(LEN('Controlador de Perda de Peso'!$B18)=0,0,'Controlador de Perda de Peso'!$B18)),\"\")","v":"2022-03-31"},{"$f":"IFERROR(IF(A15,0,IF(LEN('Controlador de Perda de Peso'!$C18)=0,0,'Controlador de Perda de Peso'!$C18)),\"\")","v":173},{"$nulls":4},{"$error":"#N/A"},{"$error":"#N/A"},{"$f":"IFERROR(AVERAGEIFS(Peso[PESO],Peso[DATA],\">=\"&$H15,Peso[DATA],\"<=\"&$I15),NA())","v":{"$error":"#N/A"}}]
[{"$f":"IF((LEN('Controlador de Perda de Peso'!$C19)=0),TRUE)","v":false},{"$f":"IFERROR(IF(A16,0,IF(LEN('Controlador de Perda de Peso'!$B19)=0,0,'Controlador de Perda de Peso'!$B19)),\"\")","v":"2022-04-07"},{"$f":"IFERROR(IF(A16,0,IF(LEN('Controlador de Perda de Peso'!$C19)=0,0,'Controlador de Perda de Peso'!$C19)),\"\")","v":172},{"$nulls":4},{"$error":"#N/A"},{"$error":"#N/A"},{"$f":"IFERROR(AVERAGEIFS(Peso[PESO],Peso[DATA],\">=\"&$H16,Peso[DATA],\"<=\"&$I16),NA())","v":{"$error":"#N/A"}}]
[{"$f":"IF((LEN('Controlador de Perda de Peso'!$C20)=0),TRUE)","v":true},{"$f":"IFERROR(IF(A17,0,IF(LEN('Controlador de Perda de Peso'!$B20)=0,0,'Controlador de Perda de Peso'!$B20)),\"\")","v":"00:00:00"},{"$f":"IFERROR(IF(A17,0,IF(LEN('Controlador de Perda de Peso'!$C20)=0,0,'Controlador de Perda de Peso'!$C20)),\"\")","v":0},{"$nulls":4},{"$error":"#N/A"},{"$error":"#N/A"},{"$f":"IFERROR(AVERAGEIFS(Peso[PESO],Peso[DATA],\">=\"&$H17,Peso[DATA],\"<=\"&$I17),NA())","v":{"$error":"#N/A"}}]
[{"$f":"IF((LEN('Controlador de Perda de Peso'!$C21)=0),TRUE)","v":true},{"$f":"IFERROR(IF(A18,0,IF(LEN('Controlador de Perda de Peso'!$B21)=0,0,'Controlador de Perda de Peso'!$B21)),\"\")","v":"00:00:00"},{"$f":"IFERROR(IF(A18,0,IF(LEN('Controlador de Perda de Peso'!$C21)=0,0,'Controlador de Perda de Peso'!$C21)),\"\")","v":0},{"$nulls":4},{"$error":"#N/A"},{"$error":"#N/A"},{"$f":"IFERROR(AVERAGEIFS(Peso[PESO],Peso[DATA],\">=\"&$H18,Peso[DATA],\"<=\"&$I18),NA())","v":{"$error":"#N/A"}}]
[{"$f":"IF((LEN('Controlador de Perda de Peso'!$C22)=0),TRUE)","v":true},{"$f":"IFERROR(IF(A19,0,IF(LEN('Controlador de Perda de Peso'!$B22)=0,0,'Controlador de Perda de Peso'!$B22)),\"\")","v":"00:00:00"},{"$f":"IFERROR(IF(A19,0,IF(LEN('Controlador de Perda de Peso'!$C22)=0,0,'Controlador de Perda de Peso'!$C22)),\"\")","v":0},{"$nulls":4},{"$error":"#N/A"},{"$error":"#N/A"},{"$f":"IFERROR(AVERAGEIFS(Peso[PESO],Peso[DATA],\">=\"&$H19,Peso[DATA],\"<=\"&$I19),NA())","v":{"$error":"#N/A"}}]
[{"$f":"IF((LEN('Controlador de Perda de Peso'!$C23)=0),TRUE)","v":true},{"$f":"IFERROR(IF(A20,0,IF(LEN('Controlador de Perda de Peso'!$B23)=0,0,'Controlador de Perda de Peso'!$B23)),\"\")","v":"00:00:00"},{"$f":"IFERROR(IF(A20,0,IF(LEN('Controlador de Perda de Peso'!$C23)=0,0,'Controlador de Perda de Peso'!$C23)),\"\")","v":0},{"$nulls":4},{"$error":"#N/A"},{"$error":"#N/A"},{"$f":"IFERROR(AVERAGEIFS(Peso[PESO],Peso[DATA],\">=\"&$H20,Peso[DATA],\"<=\"&$I20),NA())","v":{"$error":"#N/A"}}]
[{"$f":"IF((LEN('Controlador de Perda de Peso'!$C24)=0),TRUE)","v":true},{"$f":"IFERROR(IF(A21,0,IF(LEN('Controlador de Perda de Peso'!$B24)=0,0,'Controlador de Perda de Peso'!$B24)),\"\")","v":"00:00:00"},{"$f":"IFERROR(IF(A21,0,IF(LEN('Controlador de Perda de Peso'!$C24)=0,0,'Controlador de Perda de Peso'!$C24)),\"\")","v":0},{"$nulls":4},{"$error":"#N/A"},{"$error":"#N/A"},{"$f":"IFERROR(AVERAGEIFS(Peso[PESO],Peso[DATA],\">=\"&$H21,Peso[DATA],\"<=\"&$I21),NA())","v":{"$error":"#N/A"}}]
[{"$f":"IF((LEN('Controlador de Perda de Peso'!$C25)=0),TRUE)","v":true},{"$f":"IFERROR(IF(A22,0,IF(LEN('Controlador de Perda de Peso'!$B25)=0,0,'Controlador de Perda de Peso'!$B25)),\"\")","v":"00:00:00"},{"$f":"IFERROR(IF(A22,0,IF(LEN('Controlador de Perda de Peso'!$C25)=0,0,'Controlador de Perda de Peso'!$C25)),\"\")","v":0},{"$nulls":4},{"$error":"#N/A"},{"$error":"#N/A"},{"$f":"IFERROR(AVERAGEIFS(Peso[PESO],Peso[DATA],\">=\"&$H22,Peso[DATA],\"<=\"&$I22),NA())","v":{"$error":"#N/A"}}]
[{"$f":"IF((LEN('Controlador de Perda de Peso'!$C26)=0),TRUE)","v":true},{"$f":"IFERROR(IF(A23,0,IF(LEN('Controlador de Perda de Peso'!$B26)=0,0,'Controlador de Perda de Peso'!$B26)),\"\")","v":"00:00:00"},{"$f":"IFERROR(IF(A23,0,IF(LEN('Controlador de Perda de Peso'!$C26)=0,0,'Controlador de Perda de Peso'!$C26)),\"\")","v":0},{"$nulls":4},{"$error":"#N/A"},{"$error":"#N/A"},{"$f":"IFERROR(AVERAGEIFS(Peso[PESO],Peso[DATA],\">=\"&$H23,Peso[DATA],\"<=\"&$I23),NA())","v":{"$error":"#N/A"}}]
[{"$f":"IF((LEN('Controlador de Perda de Peso'!$C27)=0),TRUE)","v":true},{"$f":"IFERROR(IF(A24,0,IF(LEN('Controlador de Perda de Peso'!$B27)=0,0,'Controlador de Perda de Peso'!$B27)),\"\")","v":"00:00:00"},{"$f":"IFERROR(IF(A24,0,IF(LEN('Controlador de Perda de Peso'!$C27)=0,0,'Controlador de Perda de Peso'!$C27)),\"\")","v":0},{"$nulls":4},{"$error":"#N/A"},{"$error":"#N/A"},{"$f":"IFERROR(AVERAGEIFS(Peso[PESO],Peso[DATA],\">=\"&$H24,Peso[DATA],\"<=\"&$I24),NA())","v":{"$error":"#N/A"}}]
[{"$f":"IF((LEN('Controlador de Perda de Peso'!$C28)=0),TRUE)","v":true},{"$f":"IFERROR(IF(A25,0,IF(LEN('Controlador de Perda de Peso'!$B28)=0,0,'Controlador de Perda de Peso'!$B28)),\"\")","v":"00:00:00"},{"$f":"IFERROR(IF(A25,0,IF(LEN('Controlador de Perda de Peso'!$C28)=0,0,'Controlador de Perda de Peso'!$C28)),\"\")","v":0},{"$nulls":4},{"$error":"#N/A"},{"$error":"#N/A"},{"$f":"IFERROR(AVERAGEIFS(Peso[PESO],Peso[DATA],\">=\"&$H25,Peso[DATA],\"<=\"&$I25),NA())","v":{"$error":"#N/A"}}]
[{"$f":"IF((LEN('Controlador de Perda de Peso'!$C29)=0),TRUE)","v":true},{"$f":"IFERROR(IF(A26,0,IF(LEN('Controlador de Perda de Peso'!$B29)=0,0,'Controlador de Perda de Peso'!$B29)),\"\")","v":"00:00:00"},{"$f":"IFERROR(IF(A26,0,IF(LEN('Controlador de Perda de Peso'!$C29)=0,0,'Controlador de Perda de Peso'!$C29)),\"\")","v":0},{"$nulls":4},{"$error":"#N/A"},{"$error":"#N/A"},{"$f":"IFERROR(AVERAGEIFS(Peso[PESO],Peso[DATA],\">=\"&$H26,Peso[DATA],\"<=\"&$I26),NA())","v":{"$error":"#N/A"}}]
[{"$f":"IF((LEN('Controlador de Perda de Peso'!$C30)=0),TRUE)","v":true},{"$f":"IFERROR(IF(A27,0,IF(LEN('Controlador de Perda de Peso'!$B30)=0,0,'Controlador de Perda de Peso'!$B30)),\"\")","v":"00:00:00"},{"$f":"IFERROR(IF(A27,0,IF(LEN('Controlador de Perda de Peso'!$C30)=0,0,'Controlador de Perda de Peso'!$C30)),\"\")","v":0},{"$nulls":4},{"$error":"#N/A"},{"$error":"#N/A"},{"$f":"IFERROR(AVERAGEIFS(Peso[PESO],Peso[DATA],\">=\"&$H27,Peso[DATA],\"<=\"&$I27),NA())","v":{"$error":"#N/A"}}]
[{"$f":"IF((LEN('Controlador de Perda de Peso'!$C31)=0),TRUE)","v":true},{"$f":"IFERROR(IF(A28,0,IF(LEN('Controlador de Perda de Peso'!$B31)=0,0,'Controlador de Perda de Peso'!$B31)),\"\")","v":"00:00:00"},{"$f":"IFERROR(IF(A28,0,IF(LEN('Controlador de Perda de Peso'!$C31)=0,0,'Controlador de Perda de Peso'!$C31)),\"\")","v":0},{"$nulls":4},{"$error":"#N/A"},{"$error":"#N/A"},{"$f":"IFERROR(AVERAGEIFS(Peso[PESO],Peso[DATA],\">=\"&$H28,Peso[DATA],\"<=\"&$I28),NA())","v":{"$error":"#N/A"}}]
[{"$f":"IF((LEN('Controlador de Perda de Peso'!$C32)=0),TRUE)","v":true},{"$f":"IFERROR(IF(A29,0,IF(LEN('Controlador de Perda de Peso'!$B32)=0,0,'Controlador de Perda de Peso'!$B32)),\"\")","v":"00:00:00"},{"$f":"IFERROR(IF(A29,0,IF(LEN('Controlador de Perda de Peso'!$C32)=0,0,'Controlador de Perda de Peso'!$C32)),\"\")","v":0}]
[{"$f":"IF((LEN('Controlador de Perda de Peso'!$C33)=0),TRUE)","v":true},{"$f":"IFERROR(IF(A30,0,IF(LEN('Controlador de Perda de Peso'!$B33)=0,0,'Controlador de Perda de Peso'!$B33)),\"\")","v":"00:00:00"},{"$f":"IFERROR(IF(A30,0,IF(LEN('Controlador de Perda de Peso'!$C33)=0,0,'Controlador de Perda de Peso'!$C33)),\"\")","v":0}]
[{"$f":"IF((LEN('Controlador de Perda de Peso'!$C34)=0),TRUE)","v":true},{"$f":"IFERROR(IF(A31,0,IF(LEN('Controlador de Perda de Peso'!$B34)=0,0,'Controlador de Perda de Peso'!$B34)),\"\")","v":"00:00:00"},{"$f":"IFERROR(IF(A31,0,IF(LEN('Controlador de Perda de Peso'!$C34)=0,0,'Controlador de Perda de Peso'!$C34)),\"\")","v":0}]
[{"$f":"IF((LEN('Controlador de Perda de Peso'!$C35)=0),TRUE)","v":true},{"$f":"IFERROR(IF(A32,0,IF(LEN('Controlador de Perda de Peso'!$B35)=0,0,'Controlador de Perda de Peso'!$B35)),\"\")","v":"00:00:00"},{"$f":"IFERROR(IF(A32,0,IF(LEN('Controlador de Perda de Peso'!$C35)=0,0,'Controlador de Perda de Peso'!$C35)),\"\")","v":0}]
[{"$f":"IF((LEN('Controlador de Perda de Peso'!$C36)=0),TRUE)","v":true},{"$f":"IFERROR(IF(A33,0,IF(LEN('Controlador de Perda de Peso'!$B36)=0,0,'Controlador de Perda de Peso'!$B36)),\"\")","v":"00:00:00"},{"$f":"IFERROR(IF(A33,0,IF(LEN('Controlador de Perda de Peso'!$C36)=0,0,'Controlador de Perda de Peso'!$C36)),\"\")","v":0}]
[{"$f":"IF((LEN('Controlador de Perda de Peso'!$C37)=0),TRUE)","v":true},{"$f":"IFERROR(IF(A34,0,IF(LEN('Controlador de Perda de Peso'!$B37)=0,0,'Controlador de Perda de Peso'!$B37)),\"\")","v":"00:00:00"},{"$f":"IFERROR(IF(A34,0,IF(LEN('Controlador de Perda de Peso'!$C37)=0,0,'Controlador de Perda de Peso'!$C37)),\"\")","v":0}]
[{"$f":"IF((LEN('Controlador de Perda de Peso'!$C38)=0),TRUE)","v":true},{"$f":"IFERROR(IF(A35,0,IF(LEN('Controlador de Perda de Peso'!$B38)=0,0,'Controlador de Perda de Peso'!$B38)),\"\")","v":"00:00:00"},{"$f":"IFERROR(IF(A35,0,IF(LEN('Controlador de Perda de Peso'!$C38)=0,0,'Controlador de Perda de Peso'!$C38)),\"\")","v":0}]
[{"$f":"IF((LEN('Controlador de Perda de Peso'!$C39)=0),TRUE)","v":true},{"$f":"IFERROR(IF(A36,0,IF(LEN('Controlador de Perda de Peso'!$B39)=0,0,'Controlador de Perda de Peso'!$B39)),\"\")","v":"00:00:00"},{"$f":"IFERROR(IF(A36,0,IF(LEN('Controlador de Perda de Peso'!$C39)=0,0,'Controlador de Perda de Peso'!$C39)),\"\")","v":0}]
[{"$f":"IF((LEN('Controlador de Perda de Peso'!$C40)=0),TRUE)","v":true},{"$f":"IFERROR(IF(A37,0,IF(LEN('Controlador de Perda de Peso'!$B40)=0,0,'Controlador de Perda de Peso'!$B40)),\"\")","v":"00:00:00"},{"$f":"IFERROR(IF(A37,0,IF(LEN('Controlador de Perda de Peso'!$C40)=0,0,'Controlador de Perda de Peso'!$C40)),\"\")","v":0}]
[{"$f":"IF((LEN('Controlador de Perda de Peso'!$C41)=0),TRUE)","v":true},{"$f":"IFERROR(IF(A38,0,IF(LEN('Controlador de Perda de Peso'!$B41)=0,0,'Controlador de Perda de Peso'!$B41)),\"\")","v":"00:00:00"},{"$f":"IFERROR(IF(A38,0,IF(LEN('Controlador de Perda de Peso'!$C41)=0,0,'Controlador de Perda de Peso'!$C41)),\"\")","v":0}]
[{"$f":"IF((LEN('Controlador de Perda de Peso'!$C42)=0),TRUE)","v":true},{"$f":"IFERROR(IF(A39,0,IF(LEN('Controlador de Perda de Peso'!$B42)=0,0,'Controlador de Perda de Peso'!$B42)),\"\")","v":"00:00:00"},{"$f":"IFERROR(IF(A39,0,IF(LEN('Controlador de Perda de Peso'!$C42)=0,0,'Controlador de Perda de Peso'!$C42)),\"\")","v":0}]
[{"$f":"IF((LEN('Controlador de Perda de Peso'!$C43)=0),TRUE)","v":true},{"$f":"IFERROR(IF(A40,0,IF(LEN('Controlador de Perda de Peso'!$B43)=0,0,'Controlador de Perda de Peso'!$B43)),\"\")","v":"00:00:00"},{"$f":"IFERROR(IF(A40,0,IF(LEN('Controlador de Perda de Peso'!$C43)=0,0,'Controlador de Perda de Peso'!$C43)),\"\")","v":0}]
[{"$f":"IF((LEN('Controlador de Perda de Peso'!$C44)=0),TRUE)","v":true},{"$f":"IFERROR(IF(A41,0,IF(LEN('Controlador de Perda de Peso'!$B44)=0,0,'Controlador de Perda de Peso'!$B44)),\"\")","v":"00:00:00"},{"$f":"IFERROR(IF(A41,0,IF(LEN('Controlador de Perda de Peso'!$C44)=0,0,'Controlador de Perda de Peso'!$C44)),\"\")","v":0}]
[{"$f":"IF((LEN('Controlador de Perda de Peso'!$C45)=0),TRUE)","v":true},{"$f":"IFERROR(IF(A42,0,IF(LEN('Controlador de Perda de Peso'!$B45)=0,0,'Controlador de Perda de Peso'!$B45)),\"\")","v":"00:00:00"},{"$f":"IFERROR(IF(A42,0,IF(LEN('Controlador de Perda de Peso'!$C45)=0,0,'Controlador de Perda de Peso'!$C45)),\"\")","v":0}]
[{"$f":"IF((LEN('Controlador de Perda de Peso'!$C46)=0),TRUE)","v":true},{"$f":"IFERROR(IF(A43,0,IF(LEN('Controlador de Perda de Peso'!$B46)=0,0,'Controlador de Perda de Peso'!$B46)),\"\")","v":"00:00:00"},{"$f":"IFERROR(IF(A43,0,IF(LEN('Controlador de Perda de Peso'!$C46)=0,0,'Controlador de Perda de Peso'!$C46)),\"\")","v":0}]
[{"$f":"IF((LEN('Controlador de Perda de Peso'!$C47)=0),TRUE)","v":true},{"$f":"IFERROR(IF(A44,0,IF(LEN('Controlador de Perda de Peso'!$B47)=0,0,'Controlador de Perda de Peso'!$B47)),\"\")","v":"00:00:00"},{"$f":"IFERROR(IF(A44,0,IF(LEN('Controlador de Perda de Peso'!$C47)=0,0,'Controlador de Perda de Peso'!$C47)),\"\")","v":0}]
[{"$f":"IF((LEN('Controlador de Perda de Peso'!$C48)=0),TRUE)","v":true},{"$f":"IFERROR(IF(A45,0,IF(LEN('Controlador de Perda de Peso'!$B48)=0,0,'Controlador de Perda de Peso'!$B48)),\"\")","v":"00:00:00"},{"$f":"IFERROR(IF(A45,0,IF(LEN('Controlador de Perda de Peso'!$C48)=0,0,'Controlador de Perda de Peso'!$C48)),\"\")","v":0}]
[{"$f":"IF((LEN('Controlador de Perda de Peso'!$C49)=0),TRUE)","v":true},{"$f":"IFERROR(IF(A46,0,IF(LEN('Controlador de Perda de Peso'!$B49)=0,0,'Controlador de Perda de Peso'!$B49)),\"\")","v":"00:00:00"},{"$f":"IFERROR(IF(A46,0,IF(LEN('Controlador de Perda de Peso'!$C49)=0,0,'Controlador de Perda de Peso'!$C49)),\"\")","v":0}]
[{"$f":"IF((LEN('Controlador de Perda de Peso'!$C50)=0),TRUE)","v":true},{"$f":"IFERROR(IF(A47,0,IF(LEN('Controlador de Perda de Peso'!$B50)=0,0,'Controlador de Perda de Peso'!$B50)),\"\")","v":"00:00:00"},{"$f":"IFERROR(IF(A47,0,IF(LEN('Controlador de Perda de Peso'!$C50)=0,0,'Controlador de Perda de Peso'!$C50)),\"\")","v":0}]
[{"$f":"IF((LEN('Controlador de Perda de Peso'!$C51)=0),TRUE)","v":true},{"$f":"IFERROR(IF(A48,0,IF(LEN('Controlador de Perda de Peso'!$B51)=0,0,'Controlador de Perda de Peso'!$B51)),\"\")","v":"00:00:00"},{"$f":"IFERROR(IF(A48,0,IF(LEN('Controlador de Perda de Peso'!$C51)=0,0,'Controlador de Perda de Peso'!$C51)),\"\")","v":0}]
[{"$f":"IF((LEN('Controlador de Perda de Peso'!$C52)=0),TRUE)","v":true},{"$f":"IFERROR(IF(A49,0,IF(LEN('Controlador de Perda de Peso'!$B52)=0,0,'Controlador de Perda de Peso'!$B52)),\"\")","v":"00:00:00"},{"$f":"IFERROR(IF(A49,0,IF(LEN('Controlador de Perda de Peso'!$C52)=0,0,'Controlador de Perda de Peso'!$C52)),\"\")","v":0}]
[{"$f":"IF((LEN('Controlador de Perda de Peso'!$C53)=0),TRUE)","v":true},{"$f":"IFERROR(IF(A50,0,IF(LEN('Controlador de Perda de Peso'!$B53)=0,0,'Controlador de Perda de Peso'!$B53)),\"\")","v":"00:00:00"},{"$f":"IFERROR(IF(A50,0,IF(LEN('Controlador de Perda de Peso'!$C53)=0,0,'Controlador de Perda de Peso'!$C53)),\"\")","v":0}]
[{"$f":"IF((LEN('Controlador de Perda de Peso'!$C54)=0),TRUE)","v":true},{"$f":"IFERROR(IF(A51,0,IF(LEN('Controlador de Perda de Peso'!$B54)=0,0,'Controlador de Perda de Peso'!$B54)),\"\")","v":"00:00:00"},{"$f":"IFERROR(IF(A51,0,IF(LEN('Controlador de Perda de Peso'!$C54)=0,0,'Controlador de Perda de Peso'!$C54)),\"\")","v":0}]
[{"$f":"IF((LEN('Controlador de Perda de Peso'!$C55)=0),TRUE)","v":true},{"$f":"IFERROR(IF(A52,0,IF(LEN('Controlador de Perda de Peso'!$B55)=0,0,'Controlador de Perda de Peso'!$B55)),\"\")","v":"00:00:00"},{"$f":"IFERROR(IF(A52,0,IF(LEN('Controlador de Perda de Peso'!$C55)=0,0,'Controlador de Perda de Peso'!$C55)),\"\")","v":0}]
[{"$f":"IF((LEN('Controlador de Perda de Peso'!$C56)=0),TRUE)","v":true},{"$f":"IFERROR(IF(A53,0,IF(LEN('Controlador de Perda de Peso'!$B56)=0,0,'Controlador de Perda de Peso'!$B56)),\"\")","v":"00:00:00"},{"$f":"IFERROR(IF(A53,0,IF(LEN('Controlador de Perda de Peso'!$C56)=0,0,'Controlador de Perda de Peso'!$C56)),\"\")","v":0}]
[{"$f":"IF((LEN('Controlador de Perda de Peso'!$C57)=0),TRUE)","v":true},{"$f":"IFERROR(IF(A54,0,IF(LEN('Controlador de Perda de Peso'!$B57)=0,0,'Controlador de Perda de Peso'!$B57)),\"\")","v":"00:00:00"},{"$f":"IFERROR(IF(A54,0,IF(LEN('Controlador de Perda de Peso'!$C57)=0,0,'Controlador de Perda de Peso'!$C57)),\"\")","v":0}]
[{"$f":"IF((LEN('Controlador de Perda de Peso'!$C58)=0),TRUE)","v":true},{"$f":"IFERROR(IF(A55,0,IF(LEN('Controlador de Perda de Peso'!$B58)=0,0,'Controlador de Perda de Peso'!$B58)),\"\")","v":"00:00:00"},{"$f":"IFERROR(IF(A55,0,IF(LEN('Controlador de Perda de Peso'!$C58)=0,0,'Controlador de Perda de Peso'!$C58)),\"\")","v":0}]
[{"$f":"IF((LEN('Controlador de Perda de Peso'!$C59)=0),TRUE)","v":true},{"$f":"IFERROR(IF(A56,0,IF(LEN('Controlador de Perda de Peso'!$B59)=0,0,'Controlador de Perda de Peso'!$B59)),\"\")","v":"00:00:00"},{"$f":"IFERROR(IF(A56,0,IF(LEN('Controlador de Perda de Peso'!$C59)=0,0,'Controlador de Perda de Peso'!$C59)),\"\")","v":0}]
[{"$f":"IF((LEN('Controlador de Perda de Peso'!$C60)=0),TRUE)","v":true},{"$f":"IFERROR(IF(A57,0,IF(LEN('Controlador de Perda de Peso'!$B60)=0,0,'Controlador de Perda de Peso'!$B60)),\"\")","v":"00:00:00"},{"$f":"IFERROR(IF(A57,0,IF(LEN('Controlador de Perda de Peso'!$C60)=0,0,'Controlador de Perda de Peso'!$C60)),\"\")","v":0}]
[{"$f":"IF((LEN('Controlador de Perda de Peso'!$C61)=0),TRUE)","v":true},{"$f":"IFERROR(IF(A58,0,IF(LEN('Controlador de Perda de Peso'!$B61)=0,0,'Controlador de Perda de Peso'!$B61)),\"\")","v":"00:00:00"},{"$f":"IFERROR(IF(A58,0,IF(LEN('Controlador de Perda de Peso'!$C61)=0,0,'Controlador de Perda de Peso'!$C61)),\"\")","v":0}]
[{"$f":"IF((LEN('Controlador de Perda de Peso'!$C62)=0),TRUE)","v":true},{"$f":"IFERROR(IF(A59,0,IF(LEN('Controlador de Perda de Peso'!$B62)=0,0,'Controlador de Perda de Peso'!$B62)),\"\")","v":"00:00:00"},{"$f":"IFERROR(IF(A59,0,IF(LEN('Controlador de Perda de Peso'!$C62)=0,0,'Controlador de Perda de Peso'!$C62)),\"\")","v":0}]
[{"$f":"IF((LEN('Controlador de Perda de Peso'!$C63)=0),TRUE)","v":true},{"$f":"IFERROR(IF(A60,0,IF(LEN('Controlador de Perda de Peso'!$B63)=0,0,'Controlador de Perda de Peso'!$B63)),\"\")","v":"00:00:00"},{"$f":"IFERROR(IF(A60,0,IF(LEN('Controlador de Perda de Peso'!$C63)=0,0,'Controlador de Perda de Peso'!$C63)),\"\")","v":0}]
[{"$f":"IF((LEN('Controlador de Perda de Peso'!$C64)=0),TRUE)","v":true},{"$f":"IFERROR(IF(A61,0,IF(LEN('Controlador de Perda de Peso'!$B64)=0,0,'Controlador de Perda de Peso'!$B64)),\"\")","v":"00:00:00"},{"$f":"IFERROR(IF(A61,0,IF(LEN('Controlador de Perda de Peso'!$C64)=0,0,'Controlador de Perda de Peso'!$C64)),\"\")","v":0}]
[{"$f":"IF((LEN('Controlador de Perda de Peso'!$C65)=0),TRUE)","v":true},{"$f":"IFERROR(IF(A62,0,IF(LEN('Controlador de Perda de Peso'!$B65)=0,0,'Controlador de Perda de Peso'!$B65)),\"\")","v":"00:00:00"},{"$f":"IFERROR(IF(A62,0,IF(LEN('Controlador de Perda de Peso'!$C65)=0,0,'Controlador de Perda de Peso'!$C65)),\"\")","v":0}]
[{"$f":"IF((LEN('Controlador de Perda de Peso'!$C66)=0),TRUE)","v":true},{"$f":"IFERROR(IF(A63,0,IF(LEN('Controlador de Perda de Peso'!$B66)=0,0,'Controlador de Perda de Peso'!$B66)),\"\")","v":"00:00:00"},{"$f":"IFERROR(IF(A63,0,IF(LEN('Controlador de Perda de Peso'!$C66)=0,0,'Controlador de Perda de Peso'!$C66)),\"\")","v":0}]
[{"$f":"IF((LEN('Controlador de Perda de Peso'!$C67)=0),TRUE)","v":true},{"$f":"IFERROR(IF(A64,0,IF(LEN('Controlador de Perda de Peso'!$B67)=0,0,'Controlador de Perda de Peso'!$B67)),\"\")","v":"00:00:00"},{"$f":"IFERROR(IF(A64,0,IF(LEN('Controlador de Perda de Peso'!$C67)=0,0,'Controlador de Perda de Peso'!$C67)),\"\")","v":0}]
[{"$f":"IF((LEN('Controlador de Perda de Peso'!$C68)=0),TRUE)","v":true},{"$f":"IFERROR(IF(A65,0,IF(LEN('Controlador de Perda de Peso'!$B68)=0,0,'Controlador de Perda de Peso'!$B68)),\"\")","v":"00:00:00"},{"$f":"IFERROR(IF(A65,0,IF(LEN('Controlador de Perda de Peso'!$C68)=0,0,'Controlador de Perda de Peso'!$C68)),\"\")","v":0}]
[{"$f":"IF((LEN('Controlador de Perda de Peso'!$C69)=0),TRUE)","v":true},{"$f":"IFERROR(IF(A66,0,IF(LEN('Controlador de Perda de Peso'!$B69)=0,0,'Controlador de Perda de Peso'!$B69)),\"\")","v":"00:00:00"},{"$f":"IFERROR(IF(A66,0,IF(LEN('Controlador de Perda de Peso'!$C69)=0,0,'Controlador de Perda de Peso'!$C69)),\"\")","v":0}]
[{"$f":"IF((LEN('Controlador de Perda de Peso'!$C70)=0),TRUE)","v":true},{"$f":"IFERROR(IF(A67,0,IF(LEN('Controlador de Perda de Peso'!$B70)=0,0,'Controlador de Perda de Peso'!$B70)),\"\")","v":"00:00:00"},{"$f":"IFERROR(IF(A67,0,IF(LEN('Controlador de Perda de Peso'!$C70)=0,0,'Controlador de Perda de Peso'!$C70)),\"\")","v":0}]
[{"$f":"IF((LEN('Controlador de Perda de Peso'!$C71)=0),TRUE)","v":true},{"$f":"IFERROR(IF(A68,0,IF(LEN('Controlador de Perda de Peso'!$B71)=0,0,'Controlador de Perda de Peso'!$B71)),\"\")","v":"00:00:00"},{"$f":"IFERROR(IF(A68,0,IF(LEN('Controlador de Perda de Peso'!$C71)=0,0,'Controlador de Perda de Peso'!$C71)),\"\")","v":0}]
[{"$f":"IF((LEN('Controlador de Perda de Peso'!$C72)=0),TRUE)","v":true},{"$f":"IFERROR(IF(A69,0,IF(LEN('Controlador de Perda de Peso'!$B72)=0,0,'Controlador de Perda de Peso'!$B72)),\"\")","v":"00:00:00"},{"$f":"IFERROR(IF(A69,0,IF(LEN('Controlador de Perda de Peso'!$C72)=0,0,'Controlador de Perda de Peso'!$C72)),\"\")","v":0}]
[{"$f":"IF((LEN('Controlador de Perda de Peso'!$C73)=0),TRUE)","v":true},{"$f":"IFERROR(IF(A70,0,IF(LEN('Controlador de Perda de Peso'!$B73)=0,0,'Controlador de Perda de Peso'!$B73)),\"\")","v":"00:00:00"},{"$f":"IFERROR(IF(A70,0,IF(LEN('Controlador de Perda de Peso'!$C73)=0,0,'Controlador de Perda de Peso'!$C73)),\"\")","v":0}]
[{"$f":"IF((LEN('Controlador de Perda de Peso'!$C74)=0),TRUE)","v":true},{"$f":"IFERROR(IF(A71,0,IF(LEN('Controlador de Perda de Peso'!$B74)=0,0,'Controlador de Perda de Peso'!$B74)),\"\")","v":"00:00:00"},{"$f":"IFERROR(IF(A71,0,IF(LEN('Controlador de Perda de Peso'!$C74)=0,0,'Controlador de Perda de Peso'!$C74)),\"\")","v":0}]
[{"$f":"IF((LEN('Controlador de Perda de Peso'!$C75)=0),TRUE)","v":true},{"$f":"IFERROR(IF(A72,0,IF(LEN('Controlador de Perda de Peso'!$B75)=0,0,'Controlador de Perda de Peso'!$B75)),\"\")","v":"00:00:00"},{"$f":"IFERROR(IF(A72,0,IF(LEN('Controlador de Perda de Peso'!$C75)=0,0,'Controlador de Perda de Peso'!$C75)),\"\")","v":0}]
[{"$f":"IF((LEN('Controlador de Perda de Peso'!$C76)=0),TRUE)","v":true},{"$f":"IFERROR(IF(A73,0,IF(LEN('Controlador de Perda de Peso'!$B76)=0,0,'Controlador de Perda de Peso'!$B76)),\"\")","v":"00:00:00"},{"$f":"IFERROR(IF(A73,0,IF(LEN('Controlador de Perda de Peso'!$C76)=0,0,'Controlador de Perda de Peso'!$C76)),\"\")","v":0}]
[{"$f":"IF((LEN('Controlador de Perda de Peso'!$C77)=0),TRUE)","v":true},{"$f":"IFERROR(IF(A74,0,IF(LEN('Controlador de Perda de Peso'!$B77)=0,0,'Controlador de Perda de Peso'!$B77)),\"\")","v":"00:00:00"},{"$f":"IFERROR(IF(A74,0,IF(LEN('Controlador de Perda de Peso'!$C77)=0,0,'Controlador de Perda de Peso'!$C77)),\"\")","v":0}]
[{"$f":"IF((LEN('Controlador de Perda de Peso'!$C78)=0),TRUE)","v":true},{"$f":"IFERROR(IF(A75,0,IF(LEN('Controlador de Perda de Peso'!$B78)=0,0,'Controlador de Perda de Peso'!$B78)),\"\")","v":"00:00:00"},{"$f":"IFERROR(IF(A75,0,IF(LEN('Controlador de Perda de Peso'!$C78)=0,0,'Controlador de Perda de Peso'!$C78)),\"\")","v":0}]
[{"$f":"IF((LEN('Controlador de Perda de Peso'!$C79)=0),TRUE)","v":true},{"$f":"IFERROR(IF(A76,0,IF(LEN('Controlador de Perda de Peso'!$B79)=0,0,'Controlador de Perda de Peso'!$B79)),\"\")","v":"00:00:00"},{"$f":"IFERROR(IF(A76,0,IF(LEN('Controlador de Perda de Peso'!$C79)=0,0,'Controlador de Perda de Peso'!$C79)),\"\")","v":0}]
[{"$f":"IF((LEN('Controlador de Perda de Peso'!$C80)=0),TRUE)","v":true},{"$f":"IFERROR(IF(A77,0,IF(LEN('Controlador de Perda de Peso'!$B80)=0,0,'Controlador de Perda de Peso'!$B80)),\"\")","v":"00:00:00"},{"$f":"IFERROR(IF(A77,0,IF(LEN('Controlador de Perda de Peso'!$C80)=0,0,'Controlador de Perda de Peso'!$C80)),\"\")","v":0}]
[{"$f":"IF((LEN('Controlador de Perda de Peso'!$C81)=0),TRUE)","v":true},{"$f":"IFERROR(IF(A78,0,IF(LEN('Controlador de Perda de Peso'!$B81)=0,0,'Controlador de Perda de Peso'!$B81)),\"\")","v":"00:00:00"},{"$f":"IFERROR(IF(A78,0,IF(LEN('Controlador de Perda de Peso'!$C81)=0,0,'Controlador de Perda de Peso'!$C81)),\"\")","v":0}]
[{"$f":"IF((LEN('Controlador de Perda de Peso'!$C82)=0),TRUE)","v":true},{"$f":"IFERROR(IF(A79,0,IF(LEN('Controlador de Perda de Peso'!$B82)=0,0,'Controlador de Perda de Peso'!$B82)),\"\")","v":"00:00:00"},{"$f":"IFERROR(IF(A79,0,IF(LEN('Controlador de Perda de Peso'!$C82)=0,0,'Controlador de Perda de Peso'!$C82)),\"\")","v":0}]
[{"$f":"IF((LEN('Controlador de Perda de Peso'!$C83)=0),TRUE)","v":true},{"$f":"IFERROR(IF(A80,0,IF(LEN('Controlador de Perda de Peso'!$B83)=0,0,'Controlador de Perda de Peso'!$B83)),\"\")","v":"00:00:00"},{"$f":"IFERROR(IF(A80,0,IF(LEN('Controlador de Perda de Peso'!$C83)=0,0,'Controlador de Perda de Peso'!$C83)),\"\")","v":0}]
[{"$f":"IF((LEN('Controlador de Perda de Peso'!$C84)=0),TRUE)","v":true},{"$f":"IFERROR(IF(A81,0,IF(LEN('Controlador de Perda de Peso'!$B84)=0,0,'Controlador de Perda de Peso'!$B84)),\"\")","v":"00:00:00"},{"$f":"IFERROR(IF(A81,0,IF(LEN('Controlador de Perda de Peso'!$C84)=0,0,'Controlador de Perda de Peso'!$C84)),\"\")","v":0}]
[{"$f":"IF((LEN('Controlador de Perda de Peso'!$C85)=0),TRUE)","v":true},{"$f":"IFERROR(IF(A82,0,IF(LEN('Controlador de Perda de Peso'!$B85)=0,0,'Controlador de Perda de Peso'!$B85)),\"\")","v":"00:00:00"},{"$f":"IFERROR(IF(A82,0,IF(LEN('Controlador de Perda de Peso'!$C85)=0,0,'Controlador de Perda de Peso'!$C85)),\"\")","v":0}]
[{"$f":"IF((LEN('Controlador de Perda de Peso'!$C86)=0),TRUE)","v":true},{"$f":"IFERROR(IF(A83,0,IF(LEN('Controlador de Perda de Peso'!$B86)=0,0,'Controlador de Perda de Peso'!$B86)),\"\")","v":"00:00:00"},{"$f":"IFERROR(IF(A83,0,IF(LEN('Controlador de Perda de Peso'!$C86)=0,0,'Controlador de Perda de Peso'!$C86)),\"\")","v":0}]
[{"$f":"IF((LEN('Controlador de Perda de Peso'!$C87)=0),TRUE)","v":true},{"$f":"IFERROR(IF(A84,0,IF(LEN('Controlador de Perda de Peso'!$B87)=0,0,'Controlador de Perda de Peso'!$B87)),\"\")","v":"00:00:00"},{"$f":"IFERROR(IF(A84,0,IF(LEN('Controlador de Perda de Peso'!$C87)=0,0,'Controlador de Perda de Peso'!$C87)),\"\")","v":0}]
[{"$f":"IF((LEN('Controlador de Perda de Peso'!$C88)=0),TRUE)","v":true},{"$f":"IFERROR(IF(A85,0,IF(LEN('Controlador de Perda de Peso'!$B88)=0,0,'Controlador de Perda de Peso'!$B88)),\"\")","v":"00:00:00"},{"$f":"IFERROR(IF(A85,0,IF(LEN('Controlador de Perda de Peso'!$C88)=0,0,'Controlador de Perda de Peso'!$C88)),\"\")","v":0}]
[{"$f":"IF((LEN('Controlador de Perda de Peso'!$C89)=0),TRUE)","v":true},{"$f":"IFERROR(IF(A86,0,IF(LEN('Controlador de Perda de Peso'!$B89)=0,0,'Controlador de Perda de Peso'!$B89)),\"\")","v":"00:00:00"},{"$f":"IFERROR(IF(A86,0,IF(LEN('Controlador de Perda de Peso'!$C89)=0,0,'Controlador de Perda de Peso'!$C89)),\"\")","v":0}]
[{"$f":"IF((LEN('Controlador de Perda de Peso'!$C90)=0),TRUE)","v":true},{"$f":"IFERROR(IF(A87,0,IF(LEN('Controlador de Perda de Peso'!$B90)=0,0,'Controlador de Perda de Peso'!$B90)),\"\")","v":"00:00:00"},{"$f":"IFERROR(IF(A87,0,IF(LEN('Controlador de Perda de Peso'!$C90)=0,0,'Controlador de Perda de Peso'!$C90)),\"\")","v":0}]
[{"$f":"IF((LEN('Controlador de Perda de Peso'!$C91)=0),TRUE)","v":true},{"$f":"IFERROR(IF(A88,0,IF(LEN('Controlador de Perda de Peso'!$B91)=0,0,'Controlador de Perda de Peso'!$B91)),\"\")","v":"00:00:00"},{"$f":"IFERROR(IF(A88,0,IF(LEN('Controlador de Perda de Peso'!$C91)=0,0,'Controlador de Perda de Peso'!$C91)),\"\")","v":0}]
[{"$f":"IF((LEN('Controlador de Perda de Peso'!$C92)=0),TRUE)","v":true},{"$f":"IFERROR(IF(A89,0,IF(LEN('Controlador de Perda de Peso'!$B92)=0,0,'Controlador de Perda de Peso'!$B92)),\"\")","v":"00:00:00"},{"$f":"IFERROR(IF(A89,0,IF(LEN('Controlador de Perda de Peso'!$C92)=0,0,'Controlador de Perda de Peso'!$C92)),\"\")","v":0}]
[{"$f":"IF((LEN('Controlador de Perda de Peso'!$C93)=0),TRUE)","v":true},{"$f":"IFERROR(IF(A90,0,IF(LEN('Controlador de Perda de Peso'!$B93)=0,0,'Controlador de Perda de Peso'!$B93)),\"\")","v":"00:00:00"},{"$f":"IFERROR(IF(A90,0,IF(LEN('Controlador de Perda de Peso'!$C93)=0,0,'Controlador de Perda de Peso'!$C93)),\"\")","v":0}]
[{"$f":"IF((LEN('Controlador de Perda de Peso'!$C94)=0),TRUE)","v":true},{"$f":"IFERROR(IF(A91,0,IF(LEN('Controlador de Perda de Peso'!$B94)=0,0,'Controlador de Perda de Peso'!$B94)),\"\")","v":"00:00:00"},{"$f":"IFERROR(IF(A91,0,IF(LEN('Controlador de Perda de Peso'!$C94)=0,0,'Controlador de Perda de Peso'!$C94)),\"\")","v":0}]
[{"$f":"IF((LEN('Controlador de Perda de Peso'!$C95)=0),TRUE)","v":true},{"$f":"IFERROR(IF(A92,0,IF(LEN('Controlador de Perda de Peso'!$B95)=0,0,'Controlador de Perda de Peso'!$B95)),\"\")","v":"00:00:00"},{"$f":"IFERROR(IF(A92,0,IF(LEN('Controlador de Perda de Peso'!$C95)=0,0,'Controlador de Perda de Peso'!$C95)),\"\")","v":0}]
[{"$f":"IF((LEN('Controlador de Perda de Peso'!$C96)=0),TRUE)","v":true},{"$f":"IFERROR(IF(A93,0,IF(LEN('Controlador de Perda de Peso'!$B96)=0,0,'Controlador de Perda de Peso'!$B96)),\"\")","v":"00:00:00"},{"$f":"IFERROR(IF(A93,0,IF(LEN('Controlador de Perda de Peso'!$C96)=0,0,'Controlador de Perda de Peso'!$C96)),\"\")","v":0}]
[{"$f":"IF((LEN('Controlador de Perda de Peso'!$C97)=0),TRUE)","v":true},{"$f":"IFERROR(IF(A94,0,IF(LEN('Controlador de Perda de Peso'!$B97)=0,0,'Controlador de Perda de Peso'!$B97)),\"\")","v":"00:00:00"},{"$f":"IFERROR(IF(A94,0,IF(LEN('Controlador de Perda de Peso'!$C97)=0,0,'Controlador de Perda de Peso'!$C97)),\"\")","v":0}]
[{"$f":"IF((LEN('Controlador de Perda de Peso'!$C98)=0),TRUE)","v":true},{"$f":"IFERROR(IF(A95,0,IF(LEN('Controlador de Perda de Peso'!$B98)=0,0,'Controlador de Perda de Peso'!$B98)),\"\")","v":"00:00:00"},{"$f":"IFERROR(IF(A95,0,IF(LEN('Controlador de Perda de Peso'!$C98)=0,0,'Controlador de Perda de Peso'!$C98)),\"\")","v":0}]
[{"$f":"IF((LEN('Controlador de Perda de Peso'!$C99)=0),TRUE)","v":true},{"$f":"IFERROR(IF(A96,0,IF(LEN('Controlador de Perda de Peso'!$B99)=0,0,'Controlador de Perda de Peso'!$B99)),\"\")","v":"00:00:00"},{"$f":"IFERROR(IF(A96,0,IF(LEN('Controlador de Perda de Peso'!$C99)=0,0,'Controlador de Perda de Peso'!$C99)),\"\")","v":0}]
[{"$f":"IF((LEN('Controlador de Perda de Peso'!$C100)=0),TRUE)","v":true},{"$f":"IFERROR(IF(A97,0,IF(LEN('Controlador de Perda de Peso'!$B100)=0,0,'Controlador de Perda de Peso'!$B100)),\"\")","v":"00:00:00"},{"$f":"IFERROR(IF(A97,0,IF(LEN('Controlador de Perda de Peso'!$C100)=0,0,'Controlador de Perda de Peso'!$C100)),\"\")","v":0}]
[{"$f":"IF((LEN('Controlador de Perda de Peso'!$C101)=0),TRUE)","v":true},{"$f":"IFERROR(IF(A98,0,IF(LEN('Controlador de Perda de Peso'!$B101)=0,0,'Controlador de Perda de Peso'!$B101)),\"\")","v":"00:00:00"},{"$f":"IFERROR(IF(A98,0,IF(LEN('Controlador de Perda de Peso'!$C101)=0,0,'Controlador de Perda de Peso'!$C101)),\"\")","v":0}]
[{"$f":"IF((LEN('Controlador de Perda de Peso'!$C102)=0),TRUE)","v":true},{"$f":"IFERROR(IF(A99,0,IF(LEN('Controlador de Perda de Peso'!$B102)=0,0,'Controlador de Perda de Peso'!$B102)),\"\")","v":"00:00:00"},{"$f":"IFERROR(IF(A99,0,IF(LEN('Controlador de Perda de Peso'!$C102)=0,0,'Controlador de Perda de Peso'!$C102)),\"\")","v":0}]
[{"$f":"IF((LEN('Controlador de Perda de Peso'!$C103)=0),TRUE)","v":true},{"$f":"IFERROR(IF(A100,0,IF(LEN('Controlador de Perda de Peso'!$B103)=0,0,'Controlador de Perda de Peso'!$B103)),\"\")","v":"00:00:00"},{"$f":"IFERROR(IF(A100,0,IF(LEN('Controlador de Perda de Peso'!$C103)=0,0,'Controlador de Perda de Peso'!$C103)),\"\")","v":0}]
[{"$f":"IF((LEN('Controlador de Perda de Peso'!$C104)=0),TRUE)","v":true},{"$f":"IFERROR(IF(A101,0,IF(LEN('Controlador de Perda de Peso'!$B104)=0,0,'Controlador de Perda de Peso'!$B104)),\"\")","v":"00:00:00"},{"$f":"IFERROR(IF(A101,0,IF(LEN('Controlador de Perda de Peso'!$C104)=0,0,'Controlador de Perda de Peso'!$C104)),\"\")","v":0}]
[{"$f":"IF((LEN('Controlador de Perda de Peso'!$C105)=0),TRUE)","v":true},{"$f":"IFERROR(IF(A102,0,IF(LEN('Controlador de Perda de Peso'!$B105)=0,0,'Controlador de Perda de Peso'!$B105)),\"\")","v":"00:00:00"},{"$f":"IFERROR(IF(A102,0,IF(LEN('Controlador de Perda de Peso'!$C105)=0,0,'Controlador de Perda de Peso'!$C105)),\"\")","v":0}]
[{"$f":"IF((LEN('Controlador de Perda de Peso'!$C106)=0),TRUE)","v":true},{"$f":"IFERROR(IF(A103,0,IF(LEN('Controlador de Perda de Peso'!$B106)=0,0,'Controlador de Perda de Peso'!$B106)),\"\")","v":"00:00:00"},{"$f":"IFERROR(IF(A103,0,IF(LEN('Controlador de Perda de Peso'!$C106)=0,0,'Controlador de Perda de Peso'!$C106)),\"\")","v":0}]
[{"$f":"IF((LEN('Controlador de Perda de Peso'!$C107)=0),TRUE)","v":true},{"$f":"IFERROR(IF(A104,0,IF(LEN('Controlador de Perda de Peso'!$B107)=0,0,'Controlador de Perda de Peso'!$B107)),\"\")","v":"00:00:00"},{"$f":"IFERROR(IF(A104,0,IF(LEN('Controlador de Perda de Peso'!$C107)=0,0,'Controlador de Perda de Peso'!$C107)),\"\")","v":0}]
[{"$f":"IF((LEN('Controlador de Perda de Peso'!$C108)=0),TRUE)","v":true},{"$f":"IFERROR(IF(A105,0,IF(LEN('Controlador de Perda de Peso'!$B108)=0,0,'Controlador de Perda de Peso'!$B108)),\"\")","v":"00:00:00"},{"$f":"IFERROR(IF(A105,0,IF(LEN('Controlador de Perda de Peso'!$C108)=0,0,'Controlador de Perda de Peso'!$C108)),\"\")","v":0}]
[{"$f":"IF((LEN('Controlador de Perda de Peso'!$C109)=0),TRUE)","v":true},{"$f":"IFERROR(IF(A106,0,IF(LEN('Controlador de Perda de Peso'!$B109)=0,0,'Controlador de Perda de Peso'!$B109)),\"\")","v":"00:00:00"},{"$f":"IFERROR(IF(A106,0,IF(LEN('Controlador de Perda de Peso'!$C109)=0,0,'Controlador de Perda de Peso'!$C109)),\"\")","v":0}]
[{"$f":"IF((LEN('Controlador de Perda de Peso'!$C110)=0),TRUE)","v":true},{"$f":"IFERROR(IF(A107,0,IF(LEN('Controlador de Perda de Peso'!$B110)=0,0,'Controlador de Perda de Peso'!$B110)),\"\")","v":"00:00:00"},{"$f":"IFERROR(IF(A107,0,IF(LEN('Controlador de Perda de Peso'!$C110)=0,0,'Controlador de Perda de Peso'!$C110)),\"\")","v":0}]